fUST/lending_fUST_20250220
["ID","MTS","AMOUNT","RATE_DAILY","PERIOD"]
[353724746,1739998251901,-500.0,0.00013863,2]
[353724748,1739998251911,-500.0,0.00013863,2]
[353724750,1739998251922,-1053.16,0.00013863,2]
[353724752,1739998251932,-608.62454332,0.00013863,2]
[353724754,1739998251941,-559.97,0.00013863,2]
[353724756,1739998251952,-500.0,0.00013863,2]
[353724758,1739998251962,-500.0,0.00013863,2]
[353724760,1739998251972,-558.31,0.00013863,2]
[353724762,1739998251982,-500.0,0.00013863,2]
[353724764,1739998251991,-500.0,0.00013863,2]
[353724766,1739998252002,-500.0,0.00013863,2]
[353724767,1739998252012,-500.0,0.00013863,2]
[353724769,1739998252024,-500.0,0.00013863,2]
[353724771,1739998252034,-500.0,0.00013863,2]
[353724773,1739998252045,-500.0,0.00013863,2]
[353724775,1739998252054,-500.0,0.00013863,2]
[353724777,1739998252065,-2610.53,0.00013863,2]
[353724779,1739998252075,-500.0,0.00013863,2]
[353724781,1739998252086,-500.0,0.00013863,2]
[353724783,1739998252095,-1417.44,0.00013863,2]
[353724785,1739998252105,-500.0,0.00013863,2]
[353724787,1739998252116,-500.0,0.00013863,2]
[353724789,1739998252125,-500.0,0.00013863,2]
[353724791,1739998252134,-1045.6,0.00013863,2]
[353724793,1739998252144,-1307.94,0.00013863,2]
[353724795,1739998252153,-500.0,0.00013863,2]
[353724797,1739998252163,-167.17528665,0.00013893,2]
[353724798,1739998252172,-2389.75297588,0.00013896,2]
[353724799,1739998252182,-2389.75297588,0.00013896,2]
[353724800,1739998252191,-2389.75297588,0.00013896,2]
[353724801,1739998252201,-2389.75297588,0.00013896,2]
[353724802,1739998252211,-2389.75297588,0.00013896,2]
[353724803,1739998252220,-2389.75297588,0.00013896,2]
[353724804,1739998252229,-2389.75297588,0.00013896,2]
[353724805,1739998252238,-2389.75297588,0.00013896,2]
[353724806,1739998252247,-2389.75297588,0.00013896,2]
[353724807,1739998252257,-2389.75297588,0.00013896,2]
[353724808,1739998252266,-2389.75297588,0.00013896,2]
[353724809,1739998252276,-2389.75297588,0.00013896,2]
[353724810,1739998252285,-2389.75297588,0.00013896,2]
[353724811,1739998252295,-2389.75297588,0.00013896,2]
[353724812,1739998252304,-2389.75297588,0.00013896,2]
[353724813,1739998252314,-2389.75297588,0.00013896,2]
[353724814,1739998252323,-2389.75297588,0.00013896,2]
[353724815,1739998252332,-2389.75297588,0.00013896,2]
[353724817,1739998252342,-2389.75297588,0.00013896,2]
[353724818,1739998252351,-2389.75,0.00013896,2]
[353724821,1739998252361,-291.11503138,0.00013896,2]
[353724823,1739998252371,-291.11503138,0.00013896,2]
[353724824,1739998252381,-291.11503138,0.00013896,2]
[353724827,1739998252391,-291.11503138,0.00013896,2]
[353724828,1739998252400,-291.11503138,0.00013896,2]
[353724830,1739998252409,-291.11503138,0.00013896,2]
[353724832,1739998252419,-291.11503138,0.00013896,2]
[353724834,1739998252429,-291.11503138,0.00013896,2]
[353724836,1739998252440,-291.11503138,0.00013896,2]
[353724838,1739998252449,-291.11503138,0.00013896,2]
[353724840,1739998252459,-291.11503138,0.00013896,2]
[353724842,1739998252469,-291.11503138,0.00013896,2]
[353724844,1739998252479,-291.11503138,0.00013896,2]
[353724846,1739998252488,-291.11503138,0.00013896,2]
[353724849,1739998252498,-291.11503138,0.00013896,2]
[353724851,1739998252508,-291.11503138,0.00013896,2]
[353724852,1739998252518,-291.11503138,0.00013896,2]
[353724855,1739998252527,-291.11503138,0.00013896,2]
[353724856,1739998252537,-291.11503138,0.00013896,2]
[353724859,1739998252547,-291.11,0.00013896,2]
[353724861,1739998252557,-151.0,0.000139,2]
[353724862,1739998252566,-152.0,0.00013927,2]
[353724864,1739998252575,-500.0,0.00013945,2]
[353724866,1739998252584,-500.0,0.00013945,2]
[353724868,1739998252594,-487.29448985,0.00013945,2]
[353724870,1739998252604,-500.0,0.00013945,2]
[353724872,1739998252614,-500.0,0.00013945,2]
[353724874,1739998252623,-500.0,0.00013945,2]
[353724876,1739998252635,-500.0,0.00013945,2]
[353724878,1739998252644,-500.0,0.00013945,2]
[353724880,1739998252654,-500.0,0.00013945,2]
[353724882,1739998252663,-500.0,0.00013945,2]
[353724884,1739998252672,-502.94796823,0.00013945,2]
[353724886,1739998252681,-500.0,0.00013945,2]
[353724888,1739998252690,-500.0,0.00013945,2]
[353724890,1739998252699,-500.0,0.00013945,2]
[353724892,1739998252709,-508.66813475,0.00013945,2]
[353724894,1739998252718,-500.0,0.00013945,2]
[353724896,1739998252728,-500.0,0.00013945,2]
[353724898,1739998252738,-500.0,0.00013945,2]
[353724900,1739998252747,-500.0,0.00013945,2]
[353724902,1739998252756,-500.0,0.00013945,2]
[353724904,1739998252765,-500.0,0.00013945,2]
[353724906,1739998252775,-500.0,0.00013945,2]
[353724908,1739998252785,-500.0,0.00013945,2]
[353724910,1739998252794,-500.0,0.00013945,2]
[353724912,1739998252805,-500.0,0.00013945,2]
[353724914,1739998252814,-500.0,0.00013945,2]
[353724916,1739998252825,-500.0,0.00013945,2]
[353724918,1739998252835,-500.0,0.00013945,2]
[353724920,1739998252844,-500.0,0.00013945,2]
[353724922,1739998252853,-500.0,0.00013945,2]
[353724924,1739998252863,-500.0,0.00013945,2]
[353724926,1739998252872,-500.0,0.00013945,2]
[353724928,1739998252884,-500.0,0.00013945,2]
[353724930,1739998252894,-509.18,0.00013945,2]
[353724932,1739998252904,-500.0,0.00013945,2]
[353724934,1739998252913,-500.0,0.00013945,2]
[353724936,1739998252924,-500.0,0.00013945,2]
[353724938,1739998252933,-500.0,0.00013945,2]
[353724946,1739998253013,-500.0,0.00013945,2]
[353724948,1739998253023,-500.0,0.00013945,2]
[353724951,1739998253033,-500.0,0.00013945,2]
[353724952,1739998253043,-500.0,0.00013945,2]
[353724955,1739998253053,-500.0,0.00013945,2]
[353724956,1739998253062,-735.72,0.00013945,2]
[353724958,1739998253072,-500.0,0.00013945,2]
[353724960,1739998253081,-503.31,0.00013945,2]
[353724962,1739998253091,-500.0,0.00013945,2]
[353724965,1739998253101,-502.3460501,0.00013945,2]
[353724966,1739998253111,-500.0,0.00013945,2]
[353724968,1739998253120,-500.0,0.00013945,2]
[353724970,1739998253130,-503.36313524,0.00013945,2]
[353724973,1739998253140,-500.0,0.00013945,2]
[353724975,1739998253150,-500.0,0.00013945,2]
[353724977,1739998253159,-500.0,0.00013945,2]
[353724978,1739998253169,-532.29,0.00013945,2]
[353724980,1739998253178,-500.0,0.00013945,2]
[353724982,1739998253188,-500.0,0.00013945,2]
[353724985,1739998253197,-770.11,0.00013945,2]
[353724987,1739998253208,-500.0,0.00013945,2]
[353724989,1739998253218,-500.0,0.00013945,2]
[353724991,1739998253228,-618.31,0.00013945,2]
[353724992,1739998253237,-500.0,0.00013945,2]
[353724994,1739998253246,-502.89752128,0.00013945,2]
[353724996,1739998253255,-500.0,0.00013945,2]
[353724998,1739998253265,-500.0,0.00013945,2]
[353725000,1739998253274,-500.0,0.00013945,2]
[353725002,1739998253284,-500.0,0.00013945,2]
[353725004,1739998253294,-500.0,0.00013945,2]
[353725006,1739998253303,-500.0,0.00013945,2]
[353725008,1739998253312,-724.13,0.00013945,2]
[353725010,1739998253322,-500.0,0.00013945,2]
[353725012,1739998253331,-500.0,0.00013945,2]
[353725014,1739998253341,-500.0,0.00013945,2]
[353725016,1739998253350,-500.0,0.00013945,2]
[353725018,1739998253359,-500.0,0.00013945,2]
[353725020,1739998253369,-500.0,0.00013945,2]
[353725022,1739998253380,-500.0,0.00013945,2]
[353725024,1739998253389,-158.71,0.00013945,2]
[353725026,1739998253398,-500.0,0.00013945,2]
[353725028,1739998253408,-686.46,0.00013945,2]
[353725030,1739998253417,-500.0,0.00013945,2]
[353725032,1739998253427,-500.0,0.00013945,2]
[353725034,1739998253437,-500.0,0.00013945,2]
[353725036,1739998253446,-500.0,0.00013945,2]
[353725038,1739998253456,-8858.9,0.00013945,2]
[353725040,1739998253465,-584.99,0.00013945,2]
[353725042,1739998253474,-500.0,0.00013945,2]
[353725044,1739998253483,-500.0,0.00013945,2]
[353725046,1739998253493,-826.72,0.00013945,2]
[353725048,1739998253502,-326.75827312,0.00013945,2]
[353725050,1739998253513,-500.0,0.00013945,2]
[353725052,1739998253523,-823.17,0.00013945,2]
[353725054,1739998253532,-500.0,0.00013945,2]
[353725056,1739998253542,-500.0,0.00013945,2]
[353725058,1739998253551,-500.0,0.00013945,2]
[353725060,1739998253561,-974.98,0.00013945,2]
[353725062,1739998253570,-500.0,0.00013945,2]
[353725064,1739998253580,-500.0,0.00013945,2]
[353725066,1739998253589,-500.0,0.00013945,2]
[353725068,1739998253600,-500.0,0.00013945,2]
[353725070,1739998253610,-500.0,0.00013945,2]
[353725072,1739998253620,-2651.57,0.00013945,2]
[353725074,1739998253630,-500.0,0.00013945,2]
[353725076,1739998253640,-500.0,0.00013945,2]
[353725078,1739998253651,-530.92,0.00013945,2]
[353725080,1739998253661,-500.0,0.00013945,2]
[353725082,1739998253671,-500.0,0.00013945,2]
[353725084,1739998253680,-605.78,0.00013945,2]
[353725086,1739998253690,-500.0,0.00013945,2]
[353725088,1739998253699,-960.62,0.00013945,2]
[353725090,1739998253709,-500.0,0.00013945,2]
[353725092,1739998253719,-500.0,0.00013945,2]
[353725094,1739998253728,-520.47,0.00013945,2]
[353725096,1739998253738,-514.43,0.00013945,2]
[353725098,1739998253748,-500.0,0.00013945,2]
[353725100,1739998253757,-500.0,0.00013945,2]
[353725102,1739998253766,-500.0,0.00013945,2]
[353725104,1739998253775,-500.0,0.00013945,2]
[353725107,1739998253785,-500.0,0.00013945,2]
[353725108,1739998253795,-500.0,0.00013945,2]
[353725110,1739998253804,-556.45,0.00013945,2]
[353725112,1739998253814,-500.0,0.00013945,2]
[353725115,1739998253824,-2343.02,0.00013945,2]
[353725117,1739998253833,-500.0,0.00013945,2]
[353725119,1739998253844,-500.0,0.00013945,2]
[353725120,1739998253854,-500.0,0.00013945,2]
[353725123,1739998253865,-500.0,0.00013945,2]
[353725125,1739998253875,-500.0,0.00013945,2]
[353725127,1739998253887,-501.98937564,0.00013945,2]
[353725129,1739998253897,-5829.82,0.00013945,2]
[353725131,1739998253907,-2086.58,0.00013945,2]
[353725133,1739998253916,-941.7,0.00013945,2]
[353725135,1739998253926,-500.0,0.00013945,2]
[353725137,1739998253936,-1298.13,0.00013945,2]
[353725139,1739998253948,-500.0,0.00013945,2]
[353725141,1739998253958,-895.31,0.00013945,2]
[353725143,1739998253969,-1140.92,0.00013945,2]
[353725144,1739998253978,-2373.44,0.00013945,2]
[353725146,1739998253988,-500.0,0.00013945,2]
[353725149,1739998253999,-25588.85,0.00013945,2]
[353725151,1739998254009,-500.0,0.00013945,2]
[353725153,1739998254018,-500.0,0.00013945,2]
[353725155,1739998254028,-500.0,0.00013945,2]
[353725157,1739998254038,-1098.92,0.00013945,2]
[353725159,1739998254048,-500.0,0.00013945,2]
[353725161,1739998254058,-642.51,0.00013945,2]
[353725162,1739998254068,-11131.15,0.00013945,2]
[353725164,1739998254078,-174.74641207,0.00013945,2]
[353725166,1739998254087,-1481.01,0.00013945,2]
[353725169,1739998254097,-2331.82,0.00013945,2]
[353725171,1739998254107,-840.9,0.00013945,2]
[353725172,1739998254117,-500.0,0.00013945,2]
[353725175,1739998254127,-1405.2,0.00013945,2]
[353725177,1739998254136,-500.0,0.00013945,2]
[353725179,1739998254145,-500.0,0.00013945,2]
[353725181,1739998254155,-1355.31,0.00013945,2]
[353725182,1739998254164,-507.53616707,0.00013945,2]
[353725185,1739998254174,-2081.89,0.00013945,2]
[353725187,1739998254183,-1273.09,0.00013945,2]
[353725188,1739998254193,-500.0,0.00013945,2]
[353725191,1739998254203,-500.0,0.00013945,2]
[353725193,1739998254213,-500.0,0.00013945,2]
[353725194,1739998254223,-3658.91,0.00013945,2]
[353725196,1739998254233,-415.66146275,0.00013945,2]
[353725198,1739998254242,-500.0,0.00013945,2]
[353725200,1739998254251,-500.0,0.00013945,2]
[353725202,1739998254260,-1053.16,0.00013945,2]
[353725204,1739998254271,-559.97,0.00013945,2]
[353725206,1739998254279,-500.0,0.00013945,2]
[353725208,1739998254289,-500.0,0.00013945,2]
[353725210,1739998254298,-558.31,0.00013945,2]
[353725212,1739998254307,-271.22088126,0.00013945,2]
[353725214,1739998254317,-500.0,0.00013945,2]
[353725223,1739998254327,-500.0,0.00013945,2]
[353725225,1739998254405,-500.0,0.00013945,2]
[353725228,1739998254415,-500.0,0.00013945,2]
[353725230,1739998254425,-500.0,0.00013945,2]
[353725232,1739998254435,-500.0,0.00013945,2]
[353725234,1739998254445,-500.0,0.00013945,2]
[353725236,1739998254454,-2610.53,0.00013945,2]
[353725238,1739998254463,-500.0,0.00013945,2]
[353725240,1739998254473,-1417.44,0.00013945,2]
[353725242,1739998254482,-500.0,0.00013945,2]
[353725244,1739998254492,-500.0,0.00013945,2]
[353725245,1739998254501,-500.0,0.00013945,2]
[353725248,1739998254511,-1045.6,0.00013945,2]
[353725250,1739998254520,-1307.94,0.00013945,2]
[353725252,1739998254530,-500.0,0.00013945,2]
[353725253,1739998254539,-107330.39539598,0.00013995,2]
[353725256,1739998254549,-107330.39539598,0.00013996,2]
[353725258,1739998254558,-107330.39539598,0.00013996,2]
[353725260,1739998254567,-151.0,0.00014,2]
[353725261,1739998254577,-1316.83465032,0.00014,2]
[353725264,1739998254586,-356.12187364,0.00014009,2]
[353725265,1739998254597,-500.0,0.00014027,2]
[353725268,1739998254607,-500.0,0.00014027,2]
[353725270,1739998254617,-503.20686269,0.00014027,2]
[353725271,1739998254629,-500.0,0.00014027,2]
[353725273,1739998254638,-500.0,0.00014027,2]
[353725275,1739998254648,-500.0,0.00014027,2]
[353725276,1739998254657,-500.0,0.00014027,2]
[353725277,1739998254667,-635.03976938,0.00014027,2]
[353725278,1739998254676,-500.0,0.00014027,2]
[353725279,1739998254686,-500.0,0.00014027,2]
[353725280,1739998254696,-500.0,0.00014027,2]
[353725282,1739998254705,-500.0,0.00014027,2]
[353725284,1739998254714,-500.0,0.00014027,2]
[353725286,1739998254723,-503.13017325,0.00014027,2]
[353725288,1739998254733,-500.0,0.00014027,2]
[353725290,1739998254742,-500.0,0.00014027,2]
[353725293,1739998254752,-367.82520372,0.00014027,2]
[353725295,1739998254762,-500.0,0.00014027,2]
[353725297,1739998254771,-561.65,0.00014027,2]
[353725298,1739998254780,-500.0,0.00014027,2]
[353725301,1739998254789,-514.56,0.00014027,2]
[353725302,1739998254798,-500.0,0.00014027,2]
[353725304,1739998254807,-493.57,0.00014027,2]
[353725306,1739998254817,-500.0,0.00014027,2]
[353725309,1739998254826,-500.0,0.00014027,2]
[353725310,1739998254835,-509.18,0.00014027,2]
[353725312,1739998254844,-500.0,0.00014027,2]
[353725314,1739998254854,-504.63572677,0.00014027,2]
[353725316,1739998254863,-500.0,0.00014027,2]
[353725318,1739998254873,-500.0,0.00014027,2]
[353725320,1739998254887,-735.72,0.00014027,2]
[353725322,1739998254897,-500.0,0.00014027,2]
[353725324,1739998254907,-503.31,0.00014027,2]
[353725326,1739998254916,-500.0,0.00014027,2]
[353725328,1739998254926,-500.0,0.00014027,2]
[353725330,1739998254936,-500.0,0.00014027,2]
[353725332,1739998254946,-500.0,0.00014027,2]
[353725334,1739998254957,-532.29,0.00014027,2]
[353725336,1739998254967,-500.0,0.00014027,2]
[353725338,1739998254976,-770.11,0.00014027,2]
[353725340,1739998254985,-500.0,0.00014027,2]
[353725342,1739998254995,-500.0,0.00014027,2]
[353725344,1739998255004,-500.0,0.00014027,2]
[353725346,1739998255013,-248.74485834,0.00014027,2]
[353725349,1739998255023,-503.13910038,0.00014027,2]
[353725350,1739998255032,-500.0,0.00014027,2]
[353725353,1739998255042,-500.0,0.00014027,2]
[353725354,1739998255052,-724.13,0.00014027,2]
[353725357,1739998255062,-500.0,0.00014027,2]
[353725359,1739998255071,-500.0,0.00014027,2]
[353725361,1739998255081,-500.0,0.00014027,2]
[353725363,1739998255090,-502.41848845,0.00014027,2]
[353725365,1739998255100,-500.0,0.00014027,2]
[353725366,1739998255109,-500.0,0.00014027,2]
[353725369,1739998255119,-686.46,0.00014027,2]
[353725370,1739998255128,-152.23276006,0.00014027,2]
[353725372,1739998255138,-500.0,0.00014027,2]
[353725375,1739998255147,-552.77,0.00014027,2]
[353725377,1739998255156,-500.0,0.00014027,2]
[353725379,1739998255166,-8858.9,0.00014027,2]
[353725380,1739998255175,-584.99,0.00014027,2]
[353725383,1739998255185,-500.0,0.00014027,2]
[353725385,1739998255196,-826.72,0.00014027,2]
[353725387,1739998255207,-500.0,0.00014027,2]
[353725389,1739998255217,-823.17,0.00014027,2]
[353725391,1739998255226,-500.0,0.00014027,2]
[353725393,1739998255236,-500.0,0.00014027,2]
[353725395,1739998255246,-974.98,0.00014027,2]
[353725397,1739998255255,-500.0,0.00014027,2]
[353725399,1739998255265,-291.58,0.00014027,2]
[353725401,1739998255274,-500.0,0.00014027,2]
[353725403,1739998255284,-500.0,0.00014027,2]
[353725405,1739998255294,-500.0,0.00014027,2]
[353725407,1739998255304,-2651.57,0.00014027,2]
[353725409,1739998255314,-530.92,0.00014027,2]
[353725411,1739998255324,-500.0,0.00014027,2]
[353725413,1739998255334,-500.0,0.00014027,2]
[353725415,1739998255343,-500.0,0.00014027,2]
[353725417,1739998255352,-605.78,0.00014027,2]
[353725419,1739998255362,-960.62,0.00014027,2]
[353725421,1739998255371,-546.77,0.00014027,2]
[353725423,1739998255381,-500.0,0.00014027,2]
[353725425,1739998255390,-520.47,0.00014027,2]
[353725427,1739998255400,-514.43,0.00014027,2]
[353725429,1739998255409,-500.0,0.00014027,2]
[353725431,1739998255419,-500.0,0.00014027,2]
[353725434,1739998255428,-500.0,0.00014027,2]
[353725436,1739998255438,-500.0,0.00014027,2]
[353725438,1739998255448,-500.0,0.00014027,2]
[353725440,1739998255459,-500.0,0.00014027,2]
[353725442,1739998255469,-556.45,0.00014027,2]
[353725444,1739998255480,-500.0,0.00014027,2]
[353725446,1739998255490,-2343.02,0.00014027,2]
[353725447,1739998255500,-500.0,0.00014027,2]
[353725450,1739998255509,-500.0,0.00014027,2]
[353725452,1739998255520,-500.0,0.00014027,2]
[353725453,1739998255530,-341.44938525,0.00014027,2]
[353725456,1739998255542,-500.0,0.00014027,2]
[353725458,1739998255553,-5829.82,0.00014027,2]
[353725460,1739998255563,-2086.58,0.00014027,2]
[353725462,1739998255573,-941.7,0.00014027,2]
[353725464,1739998255583,-500.0,0.00014027,2]
[353725466,1739998255593,-1298.13,0.00014027,2]
[353725468,1739998255603,-500.0,0.00014027,2]
[353725477,1739998255676,-895.31,0.00014027,2]
[353725479,1739998255693,-1140.92,0.00014027,2]
[353725481,1739998255703,-2373.44,0.00014027,2]
[353725483,1739998255713,-500.0,0.00014027,2]
[353725485,1739998255723,-25588.85,0.00014027,2]
[353725487,1739998255733,-500.0,0.00014027,2]
[353725490,1739998255744,-500.0,0.00014027,2]
[353725491,1739998255754,-1098.92,0.00014027,2]
[353725494,1739998255764,-500.0,0.00014027,2]
[353725496,1739998255774,-642.51,0.00014027,2]
[353725498,1739998255783,-11131.15,0.00014027,2]
[353725500,1739998255793,-1481.01,0.00014027,2]
[353725502,1739998255803,-2331.82,0.00014027,2]
[353725504,1739998255812,-840.9,0.00014027,2]
[353725506,1739998255822,-500.0,0.00014027,2]
[353725508,1739998255831,-1405.2,0.00014027,2]
[353725510,1739998255842,-500.0,0.00014027,2]
[353725512,1739998255852,-1355.31,0.00014027,2]
[353725514,1739998255861,-2081.89,0.00014027,2]
[353725516,1739998255871,-1273.09,0.00014027,2]
[353725518,1739998255883,-500.0,0.00014027,2]
[353725520,1739998255893,-500.0,0.00014027,2]
[353725522,1739998255904,-500.0,0.00014027,2]
[353725524,1739998255914,-3658.91,0.00014027,2]
[353725526,1739998255924,-500.0,0.00014027,2]
[353725528,1739998255934,-500.0,0.00014027,2]
[353725530,1739998255944,-1053.16,0.00014027,2]
[353725532,1739998255955,-559.97,0.00014027,2]
[353725534,1739998255965,-500.0,0.00014027,2]
[353725536,1739998255975,-500.0,0.00014027,2]
[353725538,1739998255985,-558.31,0.00014027,2]
[353725540,1739998255994,-500.0,0.00014027,2]
[353725542,1739998256003,-500.0,0.00014027,2]
[353725544,1739998256013,-500.0,0.00014027,2]
[353725546,1739998256022,-635.9639783,0.00014027,2]
[353725548,1739998256032,-500.0,0.00014027,2]
[353725550,1739998256042,-516.29,0.00014027,2]
[353725552,1739998256052,-500.0,0.00014027,2]
[353725554,1739998256062,-2610.53,0.00014027,2]
[353725556,1739998256071,-500.0,0.00014027,2]
[353725558,1739998256081,-1417.44,0.00014027,2]
[353725560,1739998256090,-500.0,0.00014027,2]
[353725562,1739998256099,-500.0,0.00014027,2]
[353725564,1739998256109,-500.0,0.00014027,2]
[353725566,1739998256118,-1045.6,0.00014027,2]
[353725568,1739998256128,-1307.94,0.00014027,2]
[353725570,1739998256137,-500.0,0.00014027,2]
[353725572,1739998256146,-1500.0,0.0001405,2]
[353725574,1739998256155,-500.0,0.00014109,2]
[353725576,1739998256164,-500.0,0.00014109,2]
[353725578,1739998256174,-500.0,0.00014109,2]
[353725580,1739998256183,-500.0,0.00014109,2]
[353725582,1739998256196,-502.81816364,0.00014109,2]
[353725584,1739998256204,-500.0,0.00014109,2]
[353725586,1739998256214,-501.73341867,0.00014109,2]
[353725587,1739998256224,-500.0,0.00014109,2]
[353725589,1739998256233,-500.0,0.00014109,2]
[353725591,1739998256243,-500.0,0.00014109,2]
[353725594,1739998256252,-500.0,0.00014109,2]
[353725595,1739998256262,-500.0,0.00014109,2]
[353725597,1739998256271,-384.47588428,0.00014109,2]
[353725599,1739998256281,-509.18,0.00014109,2]
[353725601,1739998256290,-501.73815508,0.00014109,2]
[353725603,1739998256299,-503.96689184,0.00014109,2]
[353725605,1739998256308,-598.35,0.00014109,2]
[353725607,1739998256318,-735.72,0.00014109,2]
[353725609,1739998256327,-503.31,0.00014109,2]
[353725611,1739998256336,-500.0,0.00014109,2]
[353725613,1739998256346,-500.0,0.00014109,2]
[353725615,1739998256355,-500.0,0.00014109,2]
[353725617,1739998256365,-532.29,0.00014109,2]
[353725619,1739998256374,-500.0,0.00014109,2]
[353725621,1739998256384,-770.11,0.00014109,2]
[353725623,1739998256393,-500.0,0.00014109,2]
[353725625,1739998256402,-503.43455033,0.00014109,2]
[353725627,1739998256411,-500.0,0.00014109,2]
[353725629,1739998256420,-500.0,0.00014109,2]
[353725631,1739998256429,-500.0,0.00014109,2]
[353725633,1739998256438,-724.13,0.00014109,2]
[353725635,1739998256448,-500.0,0.00014109,2]
[353725637,1739998256457,-500.0,0.00014109,2]
[353725639,1739998256466,-500.0,0.00014109,2]
[353725641,1739998256475,-500.0,0.00014109,2]
[353725643,1739998256484,-500.0,0.00014109,2]
[353725645,1739998256493,-686.46,0.00014109,2]
[353725647,1739998256503,-503.7232288,0.00014109,2]
[353725649,1739998256513,-8858.9,0.00014109,2]
[353725651,1739998256522,-584.99,0.00014109,2]
[353725653,1739998256531,-505.03,0.00014109,2]
[353725655,1739998256541,-826.72,0.00014109,2]
[353725656,1739998256550,-500.0,0.00014109,2]
[353725659,1739998256560,-823.17,0.00014109,2]
[353725660,1739998256570,-500.0,0.00014109,2]
[353725662,1739998256579,-974.98,0.00014109,2]
[353725665,1739998256592,-500.0,0.00014109,2]
[353725666,1739998256602,-500.0,0.00014109,2]
[353725668,1739998256612,-500.0,0.00014109,2]
[353725670,1739998256622,-2651.57,0.00014109,2]
[353725672,1739998256632,-530.92,0.00014109,2]
[353725674,1739998256642,-332.5485147,0.00014109,2]
[353725677,1739998256652,-500.0,0.00014109,2]
[353725679,1739998256661,-500.0,0.00014109,2]
[353725680,1739998256671,-605.78,0.00014109,2]
[353725682,1739998256681,-960.62,0.00014109,2]
[353725684,1739998256691,-520.47,0.00014109,2]
[353725686,1739998256701,-514.43,0.00014109,2]
[353725688,1739998256711,-500.0,0.00014109,2]
[353725690,1739998256721,-500.0,0.00014109,2]
[353725692,1739998256731,-500.0,0.00014109,2]
[353725694,1739998256741,-500.0,0.00014109,2]
[353725696,1739998256750,-500.0,0.00014109,2]
[353725698,1739998256760,-500.0,0.00014109,2]
[353725700,1739998256769,-556.45,0.00014109,2]
[353725702,1739998256779,-500.0,0.00014109,2]
[353725704,1739998256789,-2343.02,0.00014109,2]
[353725713,1739998256855,-500.0,0.00014109,2]
[353725715,1739998256872,-501.64956406,0.00014109,2]
[353725717,1739998256883,-500.0,0.00014109,2]
[353725718,1739998256893,-500.0,0.00014109,2]
[353725721,1739998256903,-5829.82,0.00014109,2]
[353725723,1739998256913,-2086.58,0.00014109,2]
[353725725,1739998256922,-941.7,0.00014109,2]
[353725726,1739998256932,-500.0,0.00014109,2]
[353725728,1739998256942,-1298.13,0.00014109,2]
[353725730,1739998256951,-500.0,0.00014109,2]
[353725732,1739998256962,-895.31,0.00014109,2]
[353725734,1739998256972,-1140.92,0.00014109,2]
[353725736,1739998256981,-2373.44,0.00014109,2]
[353725738,1739998256990,-500.0,0.00014109,2]
[353725740,1739998257000,-25588.85,0.00014109,2]
[353725742,1739998257009,-500.0,0.00014109,2]
[353725744,1739998257019,-500.0,0.00014109,2]
[353725746,1739998257028,-1098.92,0.00014109,2]